[Event "Titled Tuesday Blitz February 22 Early 2022"]
[White "Sanchez, Robert"]
[Black "Marson, Juan Miguel"]
[WhiteFideId "2034360"]
[BlackFideId "106585"]
[WhiteElo "2287"]
[BlackElo "2053"]
[Result "0-1"]
[Round "03"]
[TimeControl "180+1"]
[Date "2022.02.22"]
[WhiteClock "0:00:01"]
[BlackClock "0:00:04"]

1. e4 {[%clk 0:03:00]}  e5 {[%clk 0:02:59]} 2. Nf3 {[%clk 0:03:01]}  Nc6 {[%clk 0:03:00]} 3. Bb5 {[%clk 0:03:01]}  f5 {[%clk 0:03:00]} 4. d3 {[%clk 0:03:00]}  fxe4 {[%clk 0:03:00]} 5. dxe4 {[%clk 0:02:59]}  Nf6 {[%clk 0:03:01]} 6. O-O {[%clk 0:02:57]}  Bc5 {[%clk 0:03:01]} 7. Bc4 {[%clk 0:02:55]}  d6 {[%clk 0:03:00]} 8. Ng5 {[%clk 0:02:53]}  Qe7 {[%clk 0:02:57]} 9. Bf7+ {[%clk 0:02:52]}  Kf8 {[%clk 0:02:56]} 10. Bb3 {[%clk 0:02:51]}  Nd8 {[%clk 0:02:54]} 11. h3 {[%clk 0:02:49]}  h6 {[%clk 0:02:54]} 12. Nf3 {[%clk 0:02:49]}  Nxe4 {[%clk 0:02:52]} 13. Be3 {[%clk 0:02:48]}  Be6 {[%clk 0:02:31]} 14. Nc3 {[%clk 0:02:46]}  Nxc3 {[%clk 0:02:22]} 15. bxc3 {[%clk 0:02:46]}  Bxb3 {[%clk 0:02:21]} 16. cxb3 {[%clk 0:02:39]}  Ne6 {[%clk 0:02:19]} 17. b4 {[%clk 0:02:34]}  Bxe3 {[%clk 0:02:10]} 18. fxe3 {[%clk 0:02:34]}  Kg8 {[%clk 0:02:09]} 19. b5 {[%clk 0:02:05]}  Kh7 {[%clk 0:01:54]} 20. Qd3+ {[%clk 0:01:12]}  g6 {[%clk 0:01:53]} 21. Qd5 {[%clk 0:01:10]}  Rhf8 {[%clk 0:01:26]} 22. Qxb7 {[%clk 0:01:06]}  Rab8 {[%clk 0:01:24]} 23. Qd5 {[%clk 0:01:03]}  Nc5 {[%clk 0:01:21]} 24. a4 {[%clk 0:01:00]}  Kh8 {[%clk 0:00:52]} 25. Nh2 {[%clk 0:00:58]}  Qg5 {[%clk 0:00:48]} 26. Rf3 {[%clk 0:00:40]}  Rxf3 {[%clk 0:00:38]} 27. Qxf3 {[%clk 0:00:40]}  e4 {[%clk 0:00:37]} 28. Qf7 {[%clk 0:00:35]}  Qxe3+ {[%clk 0:00:36]} 29. Kh1 {[%clk 0:00:35]}  Qxc3 {[%clk 0:00:35]} 30. Rf1 {[%clk 0:00:35]}  Qg7 {[%clk 0:00:36]} 31. Qd5 {[%clk 0:00:32]}  Rf8 {[%clk 0:00:32]} 32. Re1 {[%clk 0:00:26]}  h5 {[%clk 0:00:31]} 33. a5 {[%clk 0:00:21]}  Qc3 {[%clk 0:00:31]} 34. Rf1 {[%clk 0:00:16]}  Rxf1+ {[%clk 0:00:30]} 35. Nxf1 {[%clk 0:00:16]}  Qd3 {[%clk 0:00:26]} 36. Qf7 {[%clk 0:00:16]}  Qd4 {[%clk 0:00:18]} 37. Qxg6 {[%clk 0:00:16]}  Qe5 {[%clk 0:00:16]} 38. Ng3 {[%clk 0:00:15]}  e3 {[%clk 0:00:13]} 39. Qh6+ {[%clk 0:00:03]}  Kg8 {[%clk 0:00:12]} 40. Qg6+ {[%clk 0:00:03]}  Kf8 {[%clk 0:00:10]} 41. Nf5 {[%clk 0:00:02]}  e2 {[%clk 0:00:07]} 42. Qh6+ {[%clk 0:00:02]}  Ke8 {[%clk 0:00:06]} 43. Qxh5+ {[%clk 0:00:02]}  Kd7 {[%clk 0:00:06]} 44. Qf7+ {[%clk 0:00:02]}  Kd8 {[%clk 0:00:04]} 45. Qg8+ {[%clk 0:00:02]}  Qe8 {[%clk 0:00:04]} 46. Qg5+ {[%clk 0:00:02]}  Kc8 {[%clk 0:00:05]} 47. Qg4 {[%clk 0:00:01]}  e1=Q+ {[%clk 0:00:04]} 0-1


[Site "https://www.chess.com"]

[Event "Titled Tuesday Blitz February 22 Early 2022"]
[White "Sarana, Alexey"]
[Black "Jones, Gawain C B"]
[WhiteFideId "24133795"]
[BlackFideId "409561"]
[WhiteElo "2665"]
[BlackElo "2657"]
[Result "1-0"]
[Round "03"]
[TimeControl "180+1"]
[Date "2022.02.22"]
[WhiteClock "0:00:39"]
[BlackClock "0:00:01"]

1. d4 {[%clk 0:03:00]}  Nf6 {[%clk 0:03:00]} 2. c4 {[%clk 0:03:01]}  g6 {[%clk 0:03:00]} 3. Nc3 {[%clk 0:03:01]}  Bg7 {[%clk 0:03:00]} 4. e4 {[%clk 0:03:02]}  d6 {[%clk 0:03:01]} 5. Be2 {[%clk 0:03:03]}  O-O {[%clk 0:03:01]} 6. Be3 {[%clk 0:03:04]}  e5 {[%clk 0:03:02]} 7. d5 {[%clk 0:03:04]}  Na6 {[%clk 0:03:02]} 8. g4 {[%clk 0:03:05]}  Nc5 {[%clk 0:03:02]} 9. f3 {[%clk 0:03:05]}  h5 {[%clk 0:03:00]} 10. g5 {[%clk 0:03:05]}  Nh7 {[%clk 0:02:58]} 11. h4 {[%clk 0:03:06]}  f5 {[%clk 0:02:54]} 12. Nh3 {[%clk 0:02:56]}  a5 {[%clk 0:02:46]} 13. Nf2 {[%clk 0:02:55]}  b6 {[%clk 0:02:40]} 14. Nd3 {[%clk 0:02:50]}  Bd7 {[%clk 0:02:39]} 15. Qd2 {[%clk 0:02:46]}  Qc8 {[%clk 0:02:32]} 16. O-O-O {[%clk 0:02:44]}  fxe4 {[%clk 0:02:12]} 17. fxe4 {[%clk 0:02:42]}  Bg4 {[%clk 0:02:12]} 18. Kb1 {[%clk 0:02:33]}  Rf7 {[%clk 0:01:53]} 19. Rdg1 {[%clk 0:02:25]}  Bxe2 {[%clk 0:01:52]} 20. Qxe2 {[%clk 0:02:25]}  Nxd3 {[%clk 0:01:47]} 21. Qxd3 {[%clk 0:02:25]}  Nf8 {[%clk 0:01:48]} 22. Nb5 {[%clk 0:02:23]}  Nd7 {[%clk 0:01:42]} 23. Qe2 {[%clk 0:02:22]}  Nb8 {[%clk 0:01:39]} 24. a3 {[%clk 0:02:22]}  Na6 {[%clk 0:01:39]} 25. Ka2 {[%clk 0:02:21]}  Qd7 {[%clk 0:01:34]} 26. Rg3 {[%clk 0:02:20]}  Bf8 {[%clk 0:01:31]} 27. Rf3 {[%clk 0:02:09]}  Qg4 {[%clk 0:01:09]} 28. Rhf1 {[%clk 0:02:09]}  Be7 {[%clk 0:01:04]} 29. Qf2 {[%clk 0:01:59]}  Rxf3 {[%clk 0:00:38]} 30. Qxf3 {[%clk 0:02:00]}  Qxf3 {[%clk 0:00:32]} 31. Rxf3 {[%clk 0:02:00]}  Rf8 {[%clk 0:00:29]} 32. Rxf8+ {[%clk 0:02:00]}  Kxf8 {[%clk 0:00:30]} 33. Kb3 {[%clk 0:01:57]}  Ke8 {[%clk 0:00:28]} 34. Ka4 {[%clk 0:01:57]}  Kd7 {[%clk 0:00:27]} 35. Na7 {[%clk 0:01:51]}  Nb8 {[%clk 0:00:10]} 36. Kb5 {[%clk 0:01:50]}  Bf8 {[%clk 0:00:10]} 37. Bd2 {[%clk 0:00:57]}  Be7 {[%clk 0:00:10]} 38. Bc3 {[%clk 0:00:56]}  Bd8 {[%clk 0:00:09]} 39. Nc6 {[%clk 0:00:49]}  Nxc6 {[%clk 0:00:05]} 40. dxc6+ {[%clk 0:00:49]}  Kc8 {[%clk 0:00:06]} 41. c5 {[%clk 0:00:48]}  bxc5 {[%clk 0:00:02]} 42. Bxa5 {[%clk 0:00:46]}  Kb8 {[%clk 0:00:03]} 43. Kc4 {[%clk 0:00:42]}  Ka7 {[%clk 0:00:03]} 44. Kd5 {[%clk 0:00:42]}  Ka6 {[%clk 0:00:03]} 45. Be1 {[%clk 0:00:39]}  Kb5 {[%clk 0:00:04]} 46. b3 {[%clk 0:00:38]}  Kb6 {[%clk 0:00:04]} 47. a4 {[%clk 0:00:38]}  Ka6 {[%clk 0:00:01]} 48. Ke6 {[%clk 0:00:38]}  Kb6 {[%clk 0:00:01]} 49. Kd7 {[%clk 0:00:38]}  Bxg5 {[%clk 0:00:01]} 50. hxg5 {[%clk 0:00:39]} 1-0


[Site "https://www.chess.com"]

[Event "Titled Tuesday Blitz February 22 Early 2022"]
[White "Serikbay, Assel"]
[Black "wisdomboy"]
[WhiteFideId "13706799"]
[WhiteElo "2130"]
[BlackElo "2439"]
[Result "0-1"]
[Round "03"]
[TimeControl "180+1"]
[Date "2022.02.22"]
[WhiteClock "0:00:08"]
[BlackClock "0:00:59"]

1. d4 {[%clk 0:02:54]}  Nf6 {[%clk 0:03:00]} 2. c4 {[%clk 0:02:45]}  e6 {[%clk 0:02:59]} 3. g3 {[%clk 0:02:43]}  c5 {[%clk 0:02:54]} 4. d5 {[%clk 0:02:42]}  exd5 {[%clk 0:02:54]} 5. cxd5 {[%clk 0:02:42]}  d6 {[%clk 0:02:55]} 6. Nc3 {[%clk 0:02:42]}  g6 {[%clk 0:02:56]} 7. Bg2 {[%clk 0:02:39]}  Bg7 {[%clk 0:02:56]} 8. e4 {[%clk 0:02:38]}  O-O {[%clk 0:02:56]} 9. Nge2 {[%clk 0:02:33]}  a6 {[%clk 0:02:53]} 10. a4 {[%clk 0:02:13]}  Nbd7 {[%clk 0:02:53]} 11. O-O {[%clk 0:02:12]}  Re8 {[%clk 0:02:53]} 12. Bf4 {[%clk 0:02:10]}  Ne5 {[%clk 0:02:47]} 13. Qc2 {[%clk 0:02:02]}  c4 {[%clk 0:02:44]} 14. b3 {[%clk 0:01:48]}  cxb3 {[%clk 0:02:27]} 15. Qxb3 {[%clk 0:01:38]}  Nfd7 {[%clk 0:02:26]} 16. Rfd1 {[%clk 0:01:28]}  Nc5 {[%clk 0:02:23]} 17. Qc2 {[%clk 0:01:23]}  Bg4 {[%clk 0:02:18]} 18. h3 {[%clk 0:01:19]}  Bxe2 {[%clk 0:02:11]} 19. Nxe2 {[%clk 0:01:11]}  b5 {[%clk 0:02:06]} 20. axb5 {[%clk 0:01:06]}  axb5 {[%clk 0:02:07]} 21. Rxa8 {[%clk 0:01:05]}  Qxa8 {[%clk 0:02:07]} 22. Nd4 {[%clk 0:01:06]}  b4 {[%clk 0:02:01]} 23. Nb5 {[%clk 0:00:58]}  Qb8 {[%clk 0:01:47]} 24. Nd4 {[%clk 0:00:50]}  b3 {[%clk 0:01:46]} 25. Qb1 {[%clk 0:00:49]}  Nc4 {[%clk 0:01:38]} 26. Bf1 {[%clk 0:00:42]}  Ne5 {[%clk 0:01:14]} 27. Bxe5 {[%clk 0:00:23]}  Bxe5 {[%clk 0:01:15]} 28. Nc6 {[%clk 0:00:23]}  Qb6 {[%clk 0:01:13]} 29. Bc4 {[%clk 0:00:18]}  Bc3 {[%clk 0:01:07]} 30. Rc1 {[%clk 0:00:11]}  Nxe4 {[%clk 0:01:03]} 31. Rf1 {[%clk 0:00:09]}  Nd2 {[%clk 0:01:03]} 32. Qd3 {[%clk 0:00:08]}  Nxf1 {[%clk 0:01:01]} 33. Qxc3 {[%clk 0:00:08]}  b2 {[%clk 0:00:59]} 0-1


[Site "https://www.chess.com"]

[Event "Titled Tuesday Blitz February 22 Early 2022"]
[White "Shohat, Yotam"]
[Black "Svane, Frederik"]
[WhiteFideId "2813955"]
[BlackFideId "12923044"]
[WhiteElo "2119"]
[BlackElo "2459"]
[Result "1-0"]
[Round "03"]
[TimeControl "180+1"]
[Date "2022.02.22"]
[WhiteClock "0:00:25"]
[BlackClock "0:00:08"]

1. e4 {[%clk 0:02:56]}  e6 {[%clk 0:03:00]} 2. d4 {[%clk 0:02:55]}  d5 {[%clk 0:03:00]} 3. Nc3 {[%clk 0:02:54]}  Nf6 {[%clk 0:03:00]} 4. e5 {[%clk 0:02:52]}  Nfd7 {[%clk 0:03:00]} 5. Nce2 {[%clk 0:02:43]}  c5 {[%clk 0:02:59]} 6. c3 {[%clk 0:02:42]}  Nc6 {[%clk 0:03:00]} 7. Nf3 {[%clk 0:02:40]}  a5 {[%clk 0:02:55]} 8. Nf4 {[%clk 0:02:38]}  a4 {[%clk 0:02:50]} 9. Bd3 {[%clk 0:02:36]}  a3 {[%clk 0:02:47]} 10. b3 {[%clk 0:02:35]}  cxd4 {[%clk 0:02:45]} 11. cxd4 {[%clk 0:02:34]}  Bb4+ {[%clk 0:02:46]} 12. Bd2 {[%clk 0:02:27]}  Qa5 {[%clk 0:02:44]} 13. h4 {[%clk 0:01:31]}  h6 {[%clk 0:02:41]} 14. Rc1 {[%clk 0:01:30]}  O-O {[%clk 0:02:37]} 15. Rh3 {[%clk 0:01:26]}  Qb6 {[%clk 0:02:27]} 16. Bxb4 {[%clk 0:01:10]}  Nxb4 {[%clk 0:02:26]} 17. Rg3 {[%clk 0:01:08]}  Nxa2 {[%clk 0:02:07]} 18. Nh5 {[%clk 0:01:03]}  g6 {[%clk 0:01:54]} 19. Kf1 {[%clk 0:00:48]}  Nxc1 {[%clk 0:01:46]} 20. Qxc1 {[%clk 0:00:49]}  a2 {[%clk 0:01:46]} 21. Qxh6 {[%clk 0:00:27]}  a1=Q+ {[%clk 0:01:45]} 22. Ne1 {[%clk 0:00:27]}  Qxe1+ {[%clk 0:00:37]} 23. Kxe1 {[%clk 0:00:28]}  Ra1+ {[%clk 0:00:37]} 24. Ke2 {[%clk 0:00:27]}  Ra2+ {[%clk 0:00:37]} 25. Ke3 {[%clk 0:00:27]}  Re2+ {[%clk 0:00:08]} 26. Kxe2 {[%clk 0:00:25]}  Qxd4 {[%clk 0:00:08]} 27. Qg7# {[%clk 0:00:25]} 1-0


[Site "https://www.chess.com"]

[Event "Titled Tuesday Blitz February 22 Early 2022"]
[White "Shuvalova, Polina"]
[Black "Jodorcovsky Werjivker, Paulo"]
[WhiteFideId "24171760"]
[BlackFideId "3700305"]
[WhiteElo "2355"]
[BlackElo "2075"]
[Result "1-0"]
[Round "03"]
[TimeControl "180+1"]
[Date "2022.02.22"]
[WhiteClock "0:01:07"]
[BlackClock "0:00:21"]

1. b3 {[%clk 0:03:00]}  d5 {[%clk 0:02:59]} 2. Bb2 {[%clk 0:03:01]}  c5 {[%clk 0:02:59]} 3. g3 {[%clk 0:02:58]}  f6 {[%clk 0:02:58]} 4. f4 {[%clk 0:02:57]}  Nc6 {[%clk 0:02:55]} 5. Nf3 {[%clk 0:02:57]}  e6 {[%clk 0:02:52]} 6. Bg2 {[%clk 0:02:57]}  Bd6 {[%clk 0:02:52]} 7. O-O {[%clk 0:02:55]}  Nge7 {[%clk 0:02:53]} 8. d3 {[%clk 0:02:54]}  Qc7 {[%clk 0:02:49]} 9. Qe1 {[%clk 0:02:53]}  Bd7 {[%clk 0:02:47]} 10. Nbd2 {[%clk 0:02:52]}  h5 {[%clk 0:02:44]} 11. e4 {[%clk 0:02:50]}  Qb6 {[%clk 0:02:15]} 12. Kh1 {[%clk 0:02:39]}  O-O-O {[%clk 0:02:12]} 13. Qf2 {[%clk 0:02:27]}  Rdg8 {[%clk 0:02:00]} 14. Rae1 {[%clk 0:02:26]}  g5 {[%clk 0:01:58]} 15. fxg5 {[%clk 0:02:20]}  fxg5 {[%clk 0:01:57]} 16. Bxh8 {[%clk 0:02:20]}  Rxh8 {[%clk 0:01:56]} 17. Nxg5 {[%clk 0:02:16]}  Nd8 {[%clk 0:01:42]} 18. exd5 {[%clk 0:02:08]}  exd5 {[%clk 0:01:40]} 19. Qf6 {[%clk 0:02:06]}  Re8 {[%clk 0:01:28]} 20. Nf7 {[%clk 0:01:58]}  Nxf7 {[%clk 0:01:24]} 21. Qxf7 {[%clk 0:01:59]}  Qc7 {[%clk 0:01:20]} 22. Rf6 {[%clk 0:01:44]}  h4 {[%clk 0:01:05]} 23. Ree6 {[%clk 0:01:31]}  Be5 {[%clk 0:00:45]} 24. Rxe7 {[%clk 0:01:28]}  Bxf6 {[%clk 0:00:32]} 25. Rxe8+ {[%clk 0:01:17]}  Bxe8 {[%clk 0:00:32]} 26. Qxe8+ {[%clk 0:01:15]}  Bd8 {[%clk 0:00:32]} 27. Qe6+ {[%clk 0:01:08]}  Kb8 {[%clk 0:00:31]} 28. Qxd5 {[%clk 0:01:09]}  hxg3 {[%clk 0:00:29]} 29. hxg3 {[%clk 0:01:10]}  Qh7+ {[%clk 0:00:25]} 30. Kg1 {[%clk 0:01:09]}  Bg5 {[%clk 0:00:23]} 31. Qxg5 {[%clk 0:01:08]}  Qf7 {[%clk 0:00:21]} 32. Qd8# {[%clk 0:01:07]} 1-0


[Site "https://www.chess.com"]

[Event "Titled Tuesday Blitz February 22 Early 2022"]
[White "Srdanovic, Jovana"]
[Black "Petesch, Gabriel"]
[WhiteFideId "954810"]
[BlackFideId "2032465"]
[WhiteElo "2059"]
[BlackElo "2374"]
[Result "0-1"]
[Round "03"]
[TimeControl "180+1"]
[Date "2022.02.22"]
[WhiteClock "0:00:09"]
[BlackClock "0:00:13"]

1. d4 {[%clk 0:03:00]}  Nc6 {[%clk 0:03:00]} 2. Nf3 {[%clk 0:02:57]}  Nf6 {[%clk 0:03:00]} 3. d5 {[%clk 0:02:54]}  Nb4 {[%clk 0:02:58]} 4. Nc3 {[%clk 0:02:53]}  e6 {[%clk 0:02:49]} 5. e4 {[%clk 0:02:38]}  exd5 {[%clk 0:02:48]} 6. exd5 {[%clk 0:02:39]}  Be7 {[%clk 0:02:44]} 7. Be2 {[%clk 0:02:37]}  O-O {[%clk 0:02:44]} 8. a3 {[%clk 0:02:33]}  Na6 {[%clk 0:02:43]} 9. b4 {[%clk 0:02:31]}  d6 {[%clk 0:02:39]} 10. O-O {[%clk 0:02:29]}  Bg4 {[%clk 0:02:35]} 11. Bb2 {[%clk 0:02:26]}  Nb8 {[%clk 0:02:27]} 12. h3 {[%clk 0:02:24]}  Bh5 {[%clk 0:02:24]} 13. Re1 {[%clk 0:02:09]}  Nbd7 {[%clk 0:02:21]} 14. Nb5 {[%clk 0:02:06]}  Re8 {[%clk 0:02:18]} 15. c4 {[%clk 0:02:04]}  Ne4 {[%clk 0:01:57]} 16. Qc2 {[%clk 0:01:47]}  Bf6 {[%clk 0:01:41]} 17. Nbd4 {[%clk 0:01:44]}  Bg6 {[%clk 0:01:12]} 18. Bd3 {[%clk 0:01:41]}  Ng5 {[%clk 0:01:08]} 19. Nxg5 {[%clk 0:01:37]}  Bxg5 {[%clk 0:01:09]} 20. Nf5 {[%clk 0:01:35]}  Bf6 {[%clk 0:01:04]} 21. Rxe8+ {[%clk 0:01:18]}  Qxe8 {[%clk 0:01:05]} 22. h4 {[%clk 0:01:17]}  Bxb2 {[%clk 0:00:47]} 23. Qxb2 {[%clk 0:01:17]}  Qe5 {[%clk 0:00:46]} 24. Qxe5 {[%clk 0:01:12]}  Nxe5 {[%clk 0:00:47]} 25. Ne7+ {[%clk 0:01:12]}  Kf8 {[%clk 0:00:46]} 26. Nxg6+ {[%clk 0:01:11]}  hxg6 {[%clk 0:00:47]} 27. Bf1 {[%clk 0:01:11]}  a5 {[%clk 0:00:45]} 28. Rb1 {[%clk 0:01:04]}  axb4 {[%clk 0:00:45]} 29. axb4 {[%clk 0:01:02]}  b6 {[%clk 0:00:45]} 30. Be2 {[%clk 0:00:59]}  Ra2 {[%clk 0:00:44]} 31. Kf1 {[%clk 0:00:59]}  Ke7 {[%clk 0:00:40]} 32. f4 {[%clk 0:00:59]}  Nd7 {[%clk 0:00:38]} 33. Re1 {[%clk 0:00:57]}  Kd8 {[%clk 0:00:38]} 34. h5 {[%clk 0:00:55]}  gxh5 {[%clk 0:00:37]} 35. Bxh5 {[%clk 0:00:56]}  g6 {[%clk 0:00:37]} 36. Bf3 {[%clk 0:00:55]}  Rb2 {[%clk 0:00:37]} 37. b5 {[%clk 0:00:55]}  Nc5 {[%clk 0:00:35]} 38. Ra1 {[%clk 0:00:52]}  Nd3 {[%clk 0:00:31]} 39. Ra8+ {[%clk 0:00:51]}  Kd7 {[%clk 0:00:30]} 40. f5 {[%clk 0:00:47]}  gxf5 {[%clk 0:00:27]} 41. Rf8 {[%clk 0:00:42]}  Ne5 {[%clk 0:00:26]} 42. Bh5 {[%clk 0:00:41]}  Rc2 {[%clk 0:00:23]} 43. Be2 {[%clk 0:00:40]}  f4 {[%clk 0:00:20]} 44. Ke1 {[%clk 0:00:39]}  Rc1+ {[%clk 0:00:18]} 45. Kd2 {[%clk 0:00:37]}  Rg1 {[%clk 0:00:17]} 46. Bf3 {[%clk 0:00:17]}  Nxc4+ {[%clk 0:00:16]} 47. Kc3 {[%clk 0:00:17]}  Ne5 {[%clk 0:00:17]} 48. Kd4 {[%clk 0:00:17]}  Re1 {[%clk 0:00:17]} 49. Be4 {[%clk 0:00:15]}  Re2 {[%clk 0:00:16]} 50. Bf5+ {[%clk 0:00:15]}  Ke7 {[%clk 0:00:16]} 51. Rc8 {[%clk 0:00:15]}  Rxg2 {[%clk 0:00:15]} 52. Rxc7+ {[%clk 0:00:13]}  Kf6 {[%clk 0:00:15]} 53. Rc6 {[%clk 0:00:11]}  Nxc6+ {[%clk 0:00:13]} 54. dxc6 {[%clk 0:00:11]}  Kxf5 {[%clk 0:00:13]} 55. c7 {[%clk 0:00:09]}  Rg8 {[%clk 0:00:13]} 0-1


[Site "https://www.chess.com"]

[Event "Titled Tuesday Blitz February 22 Early 2022"]
[White "Szpar, Milosz"]
[Black "Grandelius, Nils"]
[WhiteFideId "1184989"]
[BlackFideId "1710400"]
[WhiteElo "2447"]
[BlackElo "2617"]
[Result "1-0"]
[Round "03"]
[TimeControl "180+1"]
[Date "2022.02.22"]
[WhiteClock "0:00:07"]
[BlackClock "0:00:16"]

1. e4 {[%clk 0:03:00]}  c6 {[%clk 0:03:00]} 2. d4 {[%clk 0:02:59]}  d5 {[%clk 0:03:00]} 3. Nc3 {[%clk 0:03:00]}  dxe4 {[%clk 0:03:00]} 4. Nxe4 {[%clk 0:03:00]}  Nf6 {[%clk 0:03:01]} 5. Qd3 {[%clk 0:02:57]}  g6 {[%clk 0:02:50]} 6. Nxf6+ {[%clk 0:02:40]}  exf6 {[%clk 0:02:51]} 7. Nf3 {[%clk 0:02:40]}  Bg7 {[%clk 0:02:50]} 8. Be2 {[%clk 0:02:23]}  O-O {[%clk 0:02:50]} 9. O-O {[%clk 0:02:23]}  a5 {[%clk 0:02:45]} 10. c3 {[%clk 0:02:19]}  Na6 {[%clk 0:02:37]} 11. Bf4 {[%clk 0:02:13]}  Nc7 {[%clk 0:02:34]} 12. Qd2 {[%clk 0:02:13]}  Re8 {[%clk 0:02:33]} 13. Rfe1 {[%clk 0:02:11]}  Be6 {[%clk 0:02:29]} 14. h3 {[%clk 0:02:07]}  Nd5 {[%clk 0:02:26]} 15. Bg3 {[%clk 0:01:58]}  Qd7 {[%clk 0:02:17]} 16. Bd3 {[%clk 0:01:52]}  b5 {[%clk 0:02:12]} 17. Qc2 {[%clk 0:01:49]}  a4 {[%clk 0:01:42]} 18. Nd2 {[%clk 0:01:43]}  b4 {[%clk 0:01:31]} 19. Ne4 {[%clk 0:01:38]}  Bf5 {[%clk 0:01:12]} 20. Nc5 {[%clk 0:01:28]}  Bxd3 {[%clk 0:01:12]} 21. Qxd3 {[%clk 0:01:29]}  Qa7 {[%clk 0:01:12]} 22. c4 {[%clk 0:00:55]}  Ne7 {[%clk 0:01:05]} 23. f3 {[%clk 0:00:47]}  Red8 {[%clk 0:00:57]} 24. Rad1 {[%clk 0:00:44]}  Nf5 {[%clk 0:00:47]} 25. Bf2 {[%clk 0:00:44]}  h5 {[%clk 0:00:47]} 26. Ne4 {[%clk 0:00:41]}  Qb7 {[%clk 0:00:41]} 27. d5 {[%clk 0:00:40]}  cxd5 {[%clk 0:00:38]} 28. cxd5 {[%clk 0:00:41]}  h4 {[%clk 0:00:36]} 29. Rd2 {[%clk 0:00:21]}  Ra5 {[%clk 0:00:33]} 30. Red1 {[%clk 0:00:20]}  Raxd5 {[%clk 0:00:24]} 31. Qxd5 {[%clk 0:00:18]}  Rxd5 {[%clk 0:00:25]} 32. Rxd5 {[%clk 0:00:19]}  Qc6 {[%clk 0:00:25]} 33. Rc5 {[%clk 0:00:17]}  Qe6 {[%clk 0:00:24]} 34. Rb5 {[%clk 0:00:10]}  Bf8 {[%clk 0:00:19]} 35. a3 {[%clk 0:00:05]}  bxa3 {[%clk 0:00:19]} 36. bxa3 {[%clk 0:00:05]}  Bxa3 {[%clk 0:00:20]} 37. Rb8+ {[%clk 0:00:05]}  Kh7 {[%clk 0:00:17]} 38. Rdd8 {[%clk 0:00:06]}  Ne7 {[%clk 0:00:14]} 39. Rh8+ {[%clk 0:00:05]}  Kg7 {[%clk 0:00:14]} 40. Bxh4 {[%clk 0:00:04]}  g5 {[%clk 0:00:14]} 41. Bf2 {[%clk 0:00:04]}  Bc1 {[%clk 0:00:12]} 42. Ng3 {[%clk 0:00:04]}  Bf4 {[%clk 0:00:12]} 43. Nh5+ {[%clk 0:00:04]}  Kg6 {[%clk 0:00:13]} 44. Nxf4+ {[%clk 0:00:04]}  gxf4 {[%clk 0:00:13]} 45. h4 {[%clk 0:00:05]}  a3 {[%clk 0:00:14]} 46. h5+ {[%clk 0:00:05]}  Kf5 {[%clk 0:00:14]} 47. Rb5+ {[%clk 0:00:06]}  Nd5 {[%clk 0:00:14]} 48. Rd8 {[%clk 0:00:06]}  a2 {[%clk 0:00:14]} 49. Rdxd5+ {[%clk 0:00:05]}  Qe5 {[%clk 0:00:14]} 50. Rxe5+ {[%clk 0:00:06]}  fxe5 {[%clk 0:00:15]} 51. Ra5 {[%clk 0:00:06]}  a1=Q+ {[%clk 0:00:15]} 52. Rxa1 {[%clk 0:00:06]}  Kg5 {[%clk 0:00:16]} 53. Re1 {[%clk 0:00:07]} 1-0


[Site "https://www.chess.com"]

[Event "Titled Tuesday Blitz February 22 Early 2022"]
[White "Topalov, Aleksandar"]
[Black "Barp, Alberto"]
[WhiteFideId "925659"]
[BlackFideId "872555"]
[WhiteElo "2098"]
[BlackElo "2229"]
[Result "0-1"]
[Round "03"]
[TimeControl "180+1"]
[Date "2022.02.22"]
[WhiteClock "0:00:12"]
[BlackClock "0:00:05"]

1. b3 {[%clk 0:03:00]}  Nf6 {[%clk 0:02:54]} 2. Bb2 {[%clk 0:03:00]}  g6 {[%clk 0:02:53]} 3. Bxf6 {[%clk 0:03:00]}  exf6 {[%clk 0:02:54]} 4. c4 {[%clk 0:03:00]}  d5 {[%clk 0:02:53]} 5. cxd5 {[%clk 0:02:59]}  Qxd5 {[%clk 0:02:54]} 6. Nc3 {[%clk 0:02:59]}  Qa5 {[%clk 0:02:52]} 7. a3 {[%clk 0:03:00]}  c6 {[%clk 0:02:51]} 8. e3 {[%clk 0:03:00]}  Bg7 {[%clk 0:02:47]} 9. Nge2 {[%clk 0:03:00]}  O-O {[%clk 0:02:47]} 10. b4 {[%clk 0:02:58]}  Qd8 {[%clk 0:02:46]} 11. d4 {[%clk 0:02:59]}  Nd7 {[%clk 0:02:45]} 12. g3 {[%clk 0:02:59]}  a5 {[%clk 0:02:44]} 13. Rb1 {[%clk 0:02:58]}  axb4 {[%clk 0:02:44]} 14. axb4 {[%clk 0:02:58]}  Nb6 {[%clk 0:02:37]} 15. Bg2 {[%clk 0:02:58]}  Bf5 {[%clk 0:02:31]} 16. Ra1 {[%clk 0:02:56]}  Qd6 {[%clk 0:02:27]} 17. O-O {[%clk 0:02:27]}  Qxb4 {[%clk 0:02:21]} 18. e4 {[%clk 0:02:27]}  Bg4 {[%clk 0:02:03]} 19. f3 {[%clk 0:02:27]}  Be6 {[%clk 0:01:58]} 20. Rb1 {[%clk 0:02:26]}  Qa5 {[%clk 0:01:57]} 21. d5 {[%clk 0:02:02]}  cxd5 {[%clk 0:01:45]} 22. Qd4 {[%clk 0:02:02]}  Nd7 {[%clk 0:01:02]} 23. exd5 {[%clk 0:01:58]}  f5 {[%clk 0:00:59]} 24. Qb4 {[%clk 0:01:58]}  Bxd5 {[%clk 0:00:42]} 25. Nxd5 {[%clk 0:01:57]}  Qxd5 {[%clk 0:00:39]} 26. Qxb7 {[%clk 0:01:57]}  Qc5+ {[%clk 0:00:32]} 27. Kh1 {[%clk 0:01:55]}  Ne5 {[%clk 0:00:30]} 28. Nf4 {[%clk 0:01:50]}  Rad8 {[%clk 0:00:24]} 29. Rfd1 {[%clk 0:01:39]}  Rxd1+ {[%clk 0:00:22]} 30. Rxd1 {[%clk 0:01:38]}  Qc2 {[%clk 0:00:18]} 31. Qd5 {[%clk 0:01:35]}  Nc4 {[%clk 0:00:18]} 32. Qd3 {[%clk 0:01:19]}  Qa2 {[%clk 0:00:17]} 33. Bf1 {[%clk 0:01:11]}  Ne5 {[%clk 0:00:16]} 34. Qe2 {[%clk 0:01:03]}  Qa8 {[%clk 0:00:16]} 35. Kg2 {[%clk 0:01:03]}  Re8 {[%clk 0:00:16]} 36. Re1 {[%clk 0:01:01]}  Rb8 {[%clk 0:00:12]} 37. Nd3 {[%clk 0:00:49]}  Nc4 {[%clk 0:00:08]} 38. Rc1 {[%clk 0:00:40]}  Nd6 {[%clk 0:00:06]} 39. Ne5 {[%clk 0:00:37]}  Re8 {[%clk 0:00:05]} 40. Rc5 {[%clk 0:00:34]}  Qa1 {[%clk 0:00:05]} 41. f4 {[%clk 0:00:33]}  Ne4 {[%clk 0:00:05]} 42. Qc4 {[%clk 0:00:27]}  Bxe5 {[%clk 0:00:03]} 43. Rxe5 {[%clk 0:00:25]}  Rxe5 {[%clk 0:00:03]} 44. fxe5 {[%clk 0:00:25]}  Qxe5 {[%clk 0:00:04]} 45. Be2 {[%clk 0:00:22]}  Qb2 {[%clk 0:00:04]} 46. Qc8+ {[%clk 0:00:16]}  Kg7 {[%clk 0:00:04]} 47. Qc4 {[%clk 0:00:15]}  Qb6 {[%clk 0:00:05]} 48. Bf3 {[%clk 0:00:14]}  Qf2+ {[%clk 0:00:05]} 49. Kh3 {[%clk 0:00:14]}  Qxf3 {[%clk 0:00:05]} 50. Qd4+ {[%clk 0:00:14]}  Kh6 {[%clk 0:00:05]} 51. Qh8 {[%clk 0:00:12]}  Nf2+ {[%clk 0:00:05]} 0-1


[Site "https://www.chess.com"]